bitfinex/quotes_SOLUSD_20220119
["timestamp","ask_amount","ask_price","bid_price","bid_amount"]
[1642584409714,52.62328757,134.56,134.48,0.25]
[1642584409915,49.65028757,134.56,134.48,13.983]
[1642584410117,49.65028757,134.56,134.48,15.77108123]
[1642584410315,49.65028757,134.56,134.48,13.733]
[1642584410316,0.25,134.55,134.48,13.733]
[1642584410516,11.1551,134.54,134.48,21.914]
[1642584411129,35.71940861,134.53,134.48,21.914]
[1642584411718,35.71940861,134.53,134.47,35.6387]
[1642584413648,46.87480861,134.53,134.46,2.973]
[1642584413844,6.25,134.52,134.45,12.94378123]
[1642584414048,6.25,134.52,134.45,11.1557]
[1642584414647,0.25,134.52,134.45,11.1557]
[1642584415244,0.25,134.52,134.45,35.0851]
[1642584415446,11.4063,134.52,134.45,35.0851]
[1642584416346,11.1563,134.52,134.45,35.0851]
[1642584417348,11.1563,134.52,134.46,0.25]
[1642584417548,11.1563,134.52,134.45,35.0851]
[1642584417749,11.1563,134.52,134.46,0.25]
[1642584418156,46.87480861,134.53,134.47,28.633857]
[1642584418653,46.87480861,134.53,134.48,0.25]
[1642584419050,46.87480861,134.53,134.46,11.1556]
[1642584419251,46.87480861,134.53,134.45,35.0859]
[1642584419453,11.1554,134.53,134.45,35.0859]
[1642584419657,11.1554,134.53,134.46,0.25]
[1642584419852,11.1554,134.53,134.46,3.224]
[1642584420355,11.1554,134.53,134.47,42.45107741]
[1642584421257,58.53571211,134.53,134.47,42.45107741]
[1642584421458,58.53571211,134.53,134.45,23.9294]
[1642584421754,0.25,134.52,134.45,23.9294]
[1642584422154,58.53571211,134.53,134.45,23.9294]
[1642584422557,11.1575,134.51,134.45,23.9294]
[1642584424861,49.39716703,134.5,134.45,23.9294]
[1642584425061,60.55506703,134.5,134.45,23.9294]
[1642584425262,60.55506703,134.5,134.44,24.6986]
[1642584425762,11.1579,134.5,134.44,24.6986]
[1642584425963,2.974,134.53,134.45,0.25]
[1642584426163,6.0,134.52,134.45,35.2252]
[1642584426564,6.0,134.53,134.45,35.2252]
[1642584426763,8.974,134.53,134.45,35.2252]
[1642584426963,38.80787778,134.52,134.45,24.0689]
[1642584427262,39.05787778,134.52,134.45,24.0689]
[1642584428569,50.21407778,134.52,134.45,24.0689]
[1642584431703,50.21407778,134.52,134.46,27.4119872]
[1642584432802,50.21407778,134.52,134.45,24.0689]
[1642584433204,50.21407778,134.52,134.44,24.6986]
[1642584433604,6.0,134.51,134.44,24.6986]
[1642584433805,37.8605665,134.49,134.44,24.6986]
[1642584434606,37.8605665,134.49,134.43,13.734]
[1642584435107,0.25,134.48,134.43,2.974]
[1642584435308,3.224,134.48,134.43,2.974]
[1642584436507,11.1608,134.47,134.41,2.974]
[1642584436712,17.1608,134.47,134.41,0.25]
[1642584437509,37.20574492,134.46,134.41,0.25]
[1642584437908,6.0,134.45,134.4,39.28048123]
[1642584438109,6.0,134.45,134.4,34.5174]
[1642584438308,6.0,134.45,134.4,23.3576]
[1642584441616,17.1622,134.45,134.4,23.3576]
[1642584442018,6.0,134.45,134.4,23.3576]
[1642584443822,6.0,134.45,134.4,52.99678954]
[1642584444221,11.1603,134.47,134.41,0.25]
[1642584444424,2.975,134.5,134.42,10.76]
[1642584444621,24.5372351,134.51,134.42,2.975]
[1642584444822,74.92,134.48,134.38,1.78808123]
[1642584445121,6.0,134.47,134.36,51.86868123]
[1642584445321,8.975,134.47,134.36,51.86868123]
[1642584445523,43.1553707,134.46,134.38,11.162]
[1642584445730,43.4053707,134.46,134.36,4.76208123]
[1642584445923,8.975,134.45,134.36,1.78808123]
[1642584446123,8.975,134.45,134.35,1.78808123]
[1642584446323,0.25,134.44,134.35,1.78808123]
[1642584446525,0.25,134.44,134.34,2.975]
[1642584446526,11.1654,134.43,134.34,4.76308123]
[1642584446726,48.14989493,134.42,134.34,2.975]
[1642584447123,48.14989493,134.42,134.35,0.25]
[1642584447324,50.49989493,134.42,134.35,0.25]
[1642584448228,48.14989493,134.42,134.35,0.25]
[1642584448426,11.166,134.41,134.35,0.25]
[1642584449627,11.166,134.41,134.33,40.69248123]
[1642584449828,11.166,134.41,134.34,0.25]
[1642584450051,11.166,134.41,134.34,6.25]
[1642584453157,11.166,134.41,134.34,6.0]
[1642584453358,11.1669,134.39,134.34,6.0]
[1642584453559,57.12002615,134.39,134.34,6.0]
[1642584454159,11.1669,134.39,134.34,6.0]
[1642584454361,11.4162,134.4,134.34,6.0]
[1642584454561,11.1662,134.4,134.34,6.0]
[1642584455260,11.1662,134.4,134.35,20.96605859]
[1642584456361,11.1662,134.4,134.34,6.0]
[1642584462774,46.98878889,134.39,134.34,6.0]
[1642584462970,11.1684,134.38,134.32,2.976]
[1642584463171,11.4184,134.38,134.31,23.6548]
[1642584465468,11.4184,134.38,134.3,100.0]
[1642584465670,11.171,134.35,134.31,6.0]
[1642584466470,36.02484671,134.34,134.3,100.0]
[1642584466671,11.1732,134.33,134.3,100.0]
[1642584466878,2.998,134.32,134.3,100.0]
[1642584467677,38.55346243,134.31,134.3,100.0]
[1642584468477,49.72796243,134.31,134.3,100.0]
[1642584469515,11.1745,134.31,134.3,100.0]
[1642584472214,2.998,134.32,134.3,100.0]
[1642584473020,2.978,134.37,134.31,3.06639993]
[1642584473216,47.77358557,134.35,134.31,3.06639993]
[1642584473416,11.1711,134.34,134.31,3.06639993]
[1642584473815,11.1711,134.34,134.31,0.03419996]
[1642584474017,11.1711,134.34,134.3,100.0]
[1642584474416,11.1733,134.32,134.3,100.0]
[1642584475222,50.05915307,134.32,134.3,100.0]
[1642584475619,22.64664,134.31,134.3,100.0]
[1642584476319,11.4255,134.31,134.3,100.0]
[1642584476519,11.1755,134.31,134.3,100.0]
[1642584476723,27.37032288,134.38,134.3,100.03419996]
[1642584477020,6.0,134.37,134.3,100.0]
[1642584477220,2.977,134.36,134.3,100.0]
[1642584477419,46.606806,134.35,134.3,100.0]
[1642584477720,6.0,134.35,134.3,100.0]
[1642584478521,11.1711,134.34,134.3,100.0]
[1642584484825,12.82853077,134.41,134.31,2.977]
[1642584485026,27.71923077,134.42,134.32,24.8058]
[1642584485227,22.6737,134.42,134.33,3.226]
[1642584485832,11.1676,134.39,134.33,50.30601281]
[1642584486030,11.1676,134.39,134.32,35.9735]
[1642584486431,11.1676,134.39,134.32,38.9505]
[1642584486832,11.1676,134.39,134.32,35.9735]
[1642584487032,60.7085525,134.38,134.32,35.9735]
[1642584487233,11.1681,134.38,134.32,35.9735]
[1642584487459,2.977,134.41,134.33,11.4168]
[1642584487659,6.0,134.4,134.33,11.1668]
[1642584488363,37.6212532,134.39,134.33,11.1668]
[1642584489662,37.6212532,134.39,134.33,14.1438]
[1642584490766,17.1664,134.4,134.33,14.1438]
[1642584491165,0.25,134.39,134.33,14.1438]
[1642584491366,11.4173,134.39,134.33,11.1668]
[1642584491765,42.24573239,134.38,134.33,11.1668]
[1642584493167,11.4173,134.39,134.33,11.1668]
[1642584493367,5.04553077,134.41,134.33,11.1668]
[1642584493577,4.18825323,134.44,134.34,1.58329236]
[1642584493578,2.06853077,134.42,134.34,1.58329236]
[1642584493772,2.06853077,134.43,134.36,11.1632]
[1642584494172,38.40709662,134.45,134.37,25.75298675]
[1642584494369,38.40709662,134.45,134.38,24.8646]
[1642584494779,47.50106585,134.45,134.38,36.0271]
[1642584496173,47.50106585,134.45,134.38,39.0021]
[1642584498572,11.1616,134.46,134.38,39.0021]
[1642584498774,6.0,134.46,134.38,36.0271]
[1642584498971,5.04353077,134.47,134.38,36.0271]
[1642584498972,5.04353077,134.47,134.41,11.1587]
[1642584499171,2.06853077,134.5,134.42,34.225]
[1642584499371,2.06853077,134.5,134.42,28.19509236]
[1642584499570,40.74157082,134.52,134.44,39.5809379]
[1642584499771,2.975,134.53,134.45,51.1642]
[1642584499772,2.06853077,134.53,134.45,51.1642]
[1642584499973,5.04253077,134.55,134.45,52.49749236]
[1642584500173,2.974,134.55,134.47,11.1541]
[1642584500371,2.974,134.55,134.47,14.1271]
[1642584500570,2.974,134.55,134.48,0.25]
[1642584500773,47.06170508,134.54,134.48,0.25]
[1642584501374,47.06170508,134.54,134.46,14.1291]
[1642584501571,6.0,134.53,134.45,2.973]
[1642584501773,8.974,134.53,134.45,0.25]
[1642584501973,11.1574,134.52,134.44,37.5107]
[1642584502172,2.974,134.51,134.44,34.5367]
[1642584502373,3.224,134.52,134.44,34.5367]
[1642584503074,11.1576,134.51,134.44,34.5367]
[1642584503274,0.25,134.5,134.44,34.5367]
[1642584503475,0.25,134.5,134.42,2.974]
[1642584503676,0.25,134.5,134.42,24.8927]
[1642584503878,0.25,134.5,134.42,13.734]
[1642584504076,2.974,134.49,134.42,2.974]
[1642584504279,14.3824,134.5,134.42,2.974]
[1642584504476,51.9211554,134.49,134.42,53.55855263]
[1642584504677,51.9211554,134.49,134.42,50.58455263]
[1642584504877,51.9211554,134.49,134.42,39.82455263]
[1642584505475,63.0808554,134.49,134.41,2.974]
[1642584505677,63.0808554,134.49,134.42,0.25]
[1642584505893,45.9211554,134.49,134.43,10.76]
[1642584506278,2.974,134.52,134.44,0.25]
[1642584506481,2.974,134.52,134.43,10.76]
[1642584506482,2.974,134.52,134.43,15.06729236]
[1642584506678,2.974,134.52,134.43,12.09329236]
[1642584506878,11.1581,134.51,134.43,10.76]
[1642584507078,2.974,134.5,134.41,10.76]
[1642584507279,50.52063042,134.5,134.41,57.49672604]
[1642584507682,6.25,134.49,134.41,58.8300184]
[1642584508080,17.409,134.49,134.41,23.25359236]
[1642584508380,11.409,134.49,134.41,10.76]
[1642584508780,11.409,134.49,134.4,24.927]
[1642584508982,2.975,134.48,134.4,24.927]
[1642584509180,11.1619,134.46,134.4,35.687]
[1642584509380,39.89508035,134.45,134.4,35.687]
[1642584510184,39.89508035,134.45,134.4,46.8481]
[1642584512484,11.1619,134.46,134.4,46.8481]
[1642584513084,11.1619,134.46,134.41,0.25]
[1642584513484,45.79540093,134.46,134.41,0.25]
[1642584514085,45.79540093,134.46,134.41,11.01]
[1642584514285,45.79540093,134.46,134.41,10.76]
[1642584514783,45.79540093,134.46,134.41,13.735]
[1642584514983,45.79540093,134.46,134.41,2.975]
[1642584515786,45.79540093,134.46,134.4,51.15639236]
[1642584515987,45.79540093,134.46,134.4,48.18139236]
[1642584516588,56.95680093,134.46,134.4,48.18139236]
[1642584517891,45.79540093,134.46,134.4,48.18139236]
[1642584520494,56.95670093,134.46,134.4,48.18139236]
[1642584524204,5.04353077,134.48,134.41,0.25]
[1642584524401,25.07033077,134.49,134.42,11.1589]
[1642584524701,0.25,134.48,134.42,35.4438]
[1642584524900,0.25,134.48,134.42,36.77709236]
[1642584525201,35.37528647,134.48,134.42,36.77709236]
[1642584526003,35.37528647,134.48,134.42,24.2849]
[1642584527503,48.60361724,134.48,134.42,24.2849]
[1642584528930,48.60361724,134.48,134.41,2.975]
[1642584529131,2.975,134.47,134.4,11.1604]
[1642584529335,11.4113,134.46,134.4,11.1604]
[1642584530736,11.4113,134.46,134.39,23.6086]
[1642584531136,11.4113,134.46,134.38,4.30829236]
[1642584531335,11.1652,134.42,134.35,6.09637359]
[1642584531538,40.41606141,134.41,134.33,38.11528123]
[1642584531833,40.66606141,134.41,134.35,11.1652]
[1642584532432,40.41606141,134.41,134.35,11.1652]
[1642584533433,51.58176141,134.41,134.35,11.1652]
[1642584533635,51.58176141,134.41,134.34,11.1661]
[1642584533836,3.226,134.4,134.33,2.975]
[1642584534038,9.226,134.4,134.33,2.975]
[1642584534437,11.29453077,134.4,134.33,2.975]
[1642584534837,11.1688,134.38,134.33,2.975]
[1642584535038,8.977,134.37,134.33,2.975]
[1642584535240,9.227,134.37,134.3,99.0]
[1642584535540,6.25,134.37,134.3,99.0]
[1642584535740,45.36066233,134.36,134.3,99.0]
[1642584536141,6.25,134.35,134.3,99.0]
[1642584536339,9.227,134.35,134.3,99.0]
[1642584537540,11.1722,134.34,134.3,99.0]
[1642584537741,3.227,134.33,134.3,99.0]
[1642584537941,46.20879557,134.31,134.3,99.0]
[1642584538341,46.45879557,134.31,134.3,99.0]
[1642584539443,0.25,134.31,134.3,99.0]
[1642584539842,2.998,134.32,134.3,99.0]
[1642584540542,46.69639301,134.32,134.3,99.0]
[1642584541542,57.86919301,134.32,134.3,99.0]
[1642584542346,14.1708,134.32,134.3,99.0]
[1642584543144,2.998,134.32,134.31,3.06639993]
[1642584543344,2.998,134.32,134.3,99.0]
[1642584546545,14.171,134.32,134.3,99.0]
[1642584548347,14.171,134.32,134.3,22.53676751]
[1642584548550,9.228,134.31,134.3,22.53676751]
[1642584548755,20.4051,134.31,134.3,17.5374554]
[1642584548946,20.4051,134.31,134.3,17.39038359]
[1642584549750,11.1771,134.31,134.3,17.39038359]
[1642584549952,11.1725,134.33,134.3,20.45678352]
[1642584550350,2.977,134.38,134.3,20.45678352]
[1642584550850,44.30650321,134.37,134.3,55.91651455]
[1642584551270,6.0,134.36,134.3,55.91651455]
[1642584551551,11.1713,134.34,134.31,2.977]
[1642584551750,11.1713,134.34,134.3,55.91651455]
[1642584551751,11.1713,134.34,134.3,52.85011462]
[1642584552851,11.1713,134.34,134.3,17.39038359]
[1642584553552,6.0,134.36,134.3,17.39038359]
[1642584553754,0.25,134.35,134.3,17.39038359]
[1642584555058,11.1707,134.35,134.3,17.39038359]
[1642584556556,11.1707,134.35,134.3,20.36738359]
[1642584556757,40.2137,134.38,134.3,20.36738359]
[1642584557057,2.977,134.4,134.31,10.76]
[1642584557256,2.977,134.42,134.32,2.977]
[1642584557456,2.977,134.42,134.32,4.30818089]
[1642584557660,2.06853077,134.44,134.33,0.25]
[1642584557661,6.0,134.41,134.33,0.25]
[1642584557856,41.68127489,134.4,134.33,37.32699551]
[1642584558056,44.65727489,134.4,134.33,37.32699551]
[1642584558257,52.84787489,134.4,134.33,37.32699551]
[1642584558456,52.84787489,134.4,134.32,25.8429]
[1642584558658,6.0,134.39,134.33,0.25]
[1642584559456,11.1697,134.38,134.33,0.25]
[1642584559857,41.75816861,134.37,134.33,0.25]
[1642584560659,52.92796861,134.37,134.32,2.977]
[1642584560860,52.92796861,134.37,134.3,28.15038359]
[1642584561260,0.25,134.36,134.3,28.15038359]
[1642584561861,0.25,134.36,134.3,17.39038359]
[1642584561862,11.1712,134.35,134.3,17.39038359]
[1642584562066,14.1482,134.35,134.3,17.39038359]
[1642584562685,0.25,134.34,134.3,17.39038359]
[1642584562888,42.22836153,134.34,134.3,17.39038359]
[1642584563286,53.39996153,134.34,134.3,15.77088811]
[1642584563489,0.25,134.33,134.3,15.77088811]
[1642584563688,2.998,134.32,134.3,15.77088811]
[1642584564188,0.25,134.31,134.3,4.83342592]
[1642584564388,36.2415071,134.31,134.3,4.83342592]
[1642584564788,42.2415071,134.31,134.3,4.83342592]
[1642584565190,72.1615261,134.31,134.3,1.92842832]
[1642584566189,72.1615261,134.31,134.3,0.92842832]
[1642584566590,87.2701271,134.31,134.3,0.00842832]
[1642584566790,36.1794,134.29,134.21,26.7509]
[1642584566991,11.1794,134.29,134.21,26.7509]
[1642584567189,6.25,134.28,134.21,26.7509]
[1642584567591,0.25,134.28,134.21,26.7509]
[1642584567790,36.34636393,134.28,134.21,26.7509]
[1642584568391,11.1781,134.27,134.21,26.7509]
[1642584568693,11.1781,134.27,134.2,3.00845047]
[1642584568895,6.0,134.26,134.2,3.00845047]
[1642584569194,2.979,134.25,134.2,3.00845047]
[1642584569393,33.0135071,134.24,134.2,3.00845047]
[1642584569596,11.1814,134.23,134.2,3.00845047]
[1642584569796,2.998,134.22,134.2,0.02945047]
[1642584570398,11.1814,134.23,134.2,3.0958504]
[1642584571099,11.1799,134.24,134.2,6.0758504]
[1642584571407,10.166,134.27,134.2,4.42703129]
[1642584571602,7.186,134.27,134.2,7.40603129]
[1642584571800,7.186,134.27,134.2,6.0748504]
[1642584572003,11.1791,134.25,134.2,3.0958504]
[1642584572202,2.98,134.24,134.2,3.0958504]
[1642584572400,2.98,134.25,134.2,3.0958504]
[1642584572799,45.77649701,134.24,134.2,3.0958504]
[1642584573202,11.1814,134.23,134.2,0.02945047]
[1642584573401,2.998,134.22,134.2,0.02945047]
[1642584573602,9.248,134.22,134.2,0.02945047]
[1642584573803,3.248,134.22,134.2,0.02945047]
[1642584574302,29.83337402,134.21,134.2,0.02945047]
[1642584575302,14.1803,134.22,134.2,0.02945047]
[1642584576302,57.42392891,134.22,134.2,0.02945047]
[1642584576902,17.207982,134.21,134.2,0.02945047]
[1642584577105,28.391782,134.21,134.2,0.02945047]
[1642584577505,22.391782,134.21,134.2,0.02945047]
[1642584577703,11.1838,134.21,134.2,0.02945047]
[1642584578405,24.467334,134.21,134.2,0.02945047]
[1642584578804,11.1838,134.21,134.2,0.02945047]
[1642584579503,17.4338,134.21,134.2,0.02945047]
[1642584579705,17.1838,134.21,134.2,0.02945047]
[1642584579905,17.4338,134.21,134.2,0.02945047]
[1642584580507,24.781647,134.21,134.2,0.02945047]
[1642584580707,17.4338,134.21,134.2,0.02945047]
[1642584580908,11.4338,134.21,134.2,0.02945047]
[1642584581510,17.4338,134.21,134.2,0.02945047]
[1642584581904,20.4138,134.21,134.2,0.02945047]
[1642584583807,31.743944,134.21,134.2,0.02945047]
[1642584585309,45.814102,134.21,134.2,0.00945047]
[1642584585510,74.92,134.19,134.1,2.98]
[1642584585710,30.462266,134.18,134.07,36.7908]
[1642584585913,11.1889,134.15,134.07,33.8098]
[1642584586110,6.0,134.14,134.07,33.8098]
[1642584586312,26.11624212,134.13,134.07,23.0498]
[1642584586711,6.25,134.14,134.07,23.0498]
[1642584586911,11.1892,134.13,134.07,23.0498]
[1642584587213,0.25,134.14,134.06,37.869013]
[1642584587412,0.25,134.14,134.04,2.982]
[1642584587413,2.982,134.13,134.04,2.982]
[1642584587814,0.25,134.12,134.04,2.982]
[1642584588520,11.1907,134.11,134.05,35.01093112]
[1642584590742,0.25,134.1,134.05,35.01093112]
[1642584591742,11.1907,134.11,134.05,35.01093112]
[1642584592544,0.25,134.1,134.05,35.01093112]
[1642584592744,11.1907,134.11,134.05,35.01093112]
[1642584593542,11.1907,134.11,134.05,46.20113112]
[1642584594446,11.1897,134.12,134.06,0.25]
[1642584595045,2.983,134.16,134.06,11.4394]
[1642584595245,80.01723463,134.17,134.06,35.53892545]
[1642584595446,17.1873,134.15,134.06,35.53892545]
[1642584595646,11.1873,134.15,134.06,35.53892545]
[1642584597150,11.1873,134.15,134.08,39.28923052]
[1642584597351,11.1873,134.15,134.09,2.982]
[1642584597949,29.6198364,134.14,134.09,2.982]
[1642584598150,29.8698364,134.14,134.08,50.47673052]
[1642584598352,11.4384,134.14,134.08,50.47673052]
[1642584598754,11.1884,134.14,134.08,39.28923052]
[1642584600253,11.1874,134.15,134.09,3.232]
[1642584600454,11.1874,134.15,134.09,26.645]
[1642584600955,11.1874,134.15,134.09,26.395]
[1642584601156,11.1874,134.15,134.1,0.25]
[1642584602257,11.1866,134.16,134.1,0.25]
[1642584602458,2.982,134.18,134.1,0.25]
[1642584602857,0.25,134.17,134.1,0.25]
[1642584603357,14.1668,134.18,134.1,0.25]
[1642584603557,4.40916823,134.19,134.1,12.76372545]
[1642584603761,1.42816823,134.19,134.11,2.981]
[1642584603961,1.42816823,134.19,134.11,26.6907]
[1642584604158,1.42816823,134.19,134.12,0.25]
[1642584604658,1.42816823,134.19,134.12,49.71972907]
[1642584605459,1.42816823,134.19,134.12,49.46972907]
[1642584605662,31.36149203,134.18,134.12,49.46972907]
[1642584605858,31.36149203,134.18,134.11,26.6907]
[1642584606059,2.981,134.17,134.11,26.6907]
[1642584606260,34.34249203,134.18,134.11,23.7097]
[1642584606661,6.25,134.17,134.11,23.7097]
[1642584606962,11.1871,134.16,134.11,23.7097]
[1642584607162,35.06122154,134.15,134.12,0.25]
[1642584607361,2.998,134.14,134.12,0.25]
[1642584607573,2.998,134.14,134.12,3.06639993]
[1642584607871,5.98,134.14,134.07,26.8401]
[1642584608070,17.1683,134.14,134.07,23.8581]
[1642584609170,14.1863,134.14,134.08,0.25]
[1642584611370,14.1693,134.16,134.08,0.25]
[1642584611577,2.982,134.18,134.09,1.32802545]
[1642584611778,1.42816823,134.19,134.11,11.1845]
[1642584611971,1.42816823,134.19,134.12,45.32697821]
[1642584612180,1.42816823,134.19,134.12,45.57697821]
[1642584612373,1.42816823,134.19,134.13,4.30902545]
[1642584612774,1.42816823,134.19,134.14,11.4326]
[1642584613374,1.42816823,134.19,134.14,0.25]
[1642584613774,1.42816823,134.19,134.13,0.25]
[1642584615101,12.61236823,134.19,134.13,0.25]
[1642584615503,12.61236823,134.19,134.12,26.7068]
[1642584615803,9.231,134.18,134.09,10.76]
[1642584616204,20.07693529,134.17,134.09,55.41441547]
[1642584616401,2.982,134.16,134.09,55.41441547]
[1642584616603,9.232,134.16,134.09,55.41441547]
[1642584617104,9.232,134.16,134.09,44.65441547]
[1642584617504,20.4198,134.16,134.09,44.65441547]
[1642584617903,20.4198,134.16,134.08,11.1873]
[1642584618103,20.4198,134.16,134.07,36.40618123]
[1642584618104,20.4198,134.16,134.07,23.8581]
[1642584618303,20.4198,134.16,134.06,4.77008123]
[1642584619003,20.4198,134.16,134.06,52.69108679]
[1642584619203,22.7698,134.16,134.06,63.87988679]
[1642584620203,22.7698,134.16,134.07,0.25]
[1642584620403,22.7698,134.16,134.07,11.438]
[1642584620604,22.5198,134.16,134.07,11.438]
[1642584620905,2.35,134.16,134.08,1.78808123]
[1642584621305,4.41016823,134.19,134.09,11.01]
[1642584621604,1.42816823,134.19,134.11,46.31245064]
[1642584621806,1.42816823,134.19,134.12,0.25]
[1642584622008,12.61236823,134.19,134.11,49.29345064]
[1642584622206,2.981,134.18,134.11,46.31245064]
[1642584623211,2.981,134.18,134.12,11.434]
[1642584623412,12.61216823,134.19,134.12,14.415]
[1642584626015,35.74423915,134.19,134.12,14.415]
[1642584626215,35.74423915,134.19,134.12,3.231]
[1642584626819,12.61216823,134.19,134.12,3.231]
[1642584630016,12.61216823,134.19,134.12,2.981]
[1642584631121,2.981,134.18,134.11,57.49755064]
[1642584631321,3.231,134.18,134.1,11.1861]
[1642584631521,17.1862,134.17,134.1,11.4361]
[1642584631722,0.25,134.16,134.1,0.25]
[1642584632325,32.68228543,134.16,134.1,0.25]
[1642584632823,11.1876,134.15,134.1,0.25]
[1642584633024,17.1876,134.15,134.1,0.25]
[1642584633426,2.982,134.14,134.09,2.981]
[1642584633627,6.0,134.13,134.09,2.981]
[1642584633860,0.25,134.12,134.09,2.981]
[1642584634064,0.25,134.12,134.05,12.54808123]
[1642584634263,40.1605856,134.12,134.04,39.29297044]
[1642584634462,40.1605856,134.12,134.05,2.983]
[1642584634463,39.5275856,134.12,134.05,2.983]
[1642584634761,11.1908,134.11,134.05,2.983]
[1642584634967,17.1908,134.11,134.05,2.983]
[1642584635563,0.25,134.1,134.05,2.983]
[1642584635766,6.0,134.11,134.05,2.983]
[1642584636166,0.25,134.1,134.05,2.983]
[1642584636569,11.4415,134.1,134.05,2.983]
[1642584637166,11.1915,134.1,134.05,2.983]
[1642584637369,11.1915,134.1,134.04,51.67898921]
[1642584637568,11.1915,134.1,134.05,0.25]
[1642584637765,11.1915,134.1,134.04,51.67898921]
[1642584638867,11.1915,134.1,134.05,0.25]
[1642584639668,6.0,134.11,134.05,0.25]
[1642584639871,2.983,134.13,134.05,12.76832545]
[1642584640074,2.983,134.16,134.06,2.983]
[1642584640271,2.983,134.16,134.07,0.25]
[1642584640471,50.48449326,134.15,134.06,1.32802545]
[1642584640670,2.982,134.14,134.07,44.37398557]
[1642584640871,2.982,134.14,134.07,44.62398557]
[1642584641070,0.25,134.13,134.07,44.37398557]
[1642584641273,11.4397,134.13,134.07,44.37398557]
[1642584641471,2.982,134.12,134.05,34.784]
[1642584641670,8.982,134.12,134.05,34.784]
[1642584641870,0.25,134.11,134.05,34.784]
[1642584642574,24.87537777,134.1,134.05,34.784]
[1642584642771,24.87537777,134.1,134.05,10.76]
[1642584642974,0.25,134.09,134.03,63.54872628]
[1642584643173,0.25,134.09,134.03,10.76]
[1642584643377,0.25,134.09,134.02,26.85250668]
[1642584643378,0.25,134.09,134.02,25.06442545]
[1642584643578,17.4426,134.09,134.03,6.0]
[1642584643774,11.4426,134.09,134.03,8.983]
[1642584644175,11.4426,134.09,134.03,51.27595703]
[1642584645407,11.4426,134.09,134.03,8.983]
[1642584645809,11.1926,134.09,134.03,8.983]
[1642584646007,14.1756,134.09,134.03,6.0]
[1642584646412,14.1756,134.09,134.02,6.0]
[1642584646608,11.1926,134.09,134.02,6.0]
[1642584648113,11.1926,134.09,134.03,0.25]
[1642584648512,11.1926,134.09,134.02,8.983]
[1642584648911,0.25,134.08,134.02,8.983]
[1642584649111,11.1934,134.08,134.01,67.77284629]
[1642584649311,11.1934,134.08,134.02,0.25]
[1642584649513,11.1934,134.08,134.01,57.01284629]
[1642584649711,11.1934,134.08,134.02,0.25]
[1642584650319,11.1934,134.08,134.01,57.01284629]
[1642584651115,41.93990198,134.07,134.01,57.01284629]
[1642584651415,53.13370198,134.07,134.01,57.01284629]
[1642584652112,11.1938,134.07,134.02,0.25]
[1642584652313,11.1938,134.07,134.01,58.34087174]
[1642584652512,11.1938,134.07,134.01,4.31102545]
[1642584652813,11.1958,134.05,134.01,2.983]
[1642584653017,11.1958,134.05,134.0,24.4479]
[1642584653516,11.1958,134.05,134.0,69.46207752]
[1642584653914,11.1958,134.05,134.0,24.4479]
[1642584654414,11.1958,134.05,133.99,2.984]
[1642584654614,11.1958,134.05,133.98,34.88962545]
[1642584654814,11.1958,134.05,133.99,48.06126125]
[1642584655215,11.1958,134.05,133.99,49.3892867]
[1642584655818,11.1958,134.05,134.0,0.25]
[1642584656016,11.1948,134.06,134.0,3.234]
[1642584656218,40.3008,134.09,134.01,1.32802545]